fUST/lending_fUST_20250709
["ID","MTS","AMOUNT","RATE_DAILY","PERIOD"]
[370461177,1752029449141,-2302.41,0.0002,2]
[370461178,1752029449151,-460.0,0.0002,2]
[370461179,1752029449164,-1488.7,0.0002,2]
[370461180,1752029449180,-151.0,0.0002,2]
[370461181,1752029449192,-460.0,0.0002,2]
[370461182,1752029449202,-151.0,0.0002,2]
[370461183,1752029449214,-460.0,0.0002,2]
[370461184,1752029449224,-460.0,0.0002,2]
[370461185,1752029449233,-763.27,0.0002,2]
[370461186,1752029449243,-460.0,0.0002,2]
[370461187,1752029449254,-526.62,0.0002,2]
[370461188,1752029449264,-460.0,0.0002,2]
[370461189,1752029449274,-467.95227676,0.0002,2]
[370461190,1752029449285,-460.0,0.0002,2]
[370461191,1752029449294,-460.0,0.0002,2]
[370461192,1752029449304,-472.26780812,0.0002,2]
[370461193,1752029449314,-686.65,0.0002,2]
[370461194,1752029449324,-460.0,0.0002,2]
[370461195,1752029449336,-460.0,0.0002,2]
[370461196,1752029449346,-460.0,0.0002,2]
[370461197,1752029449357,-460.0,0.0002,2]
[370461198,1752029449367,-460.0,0.0002,2]
[370461199,1752029449378,-460.0,0.0002,2]
[370461200,1752029449388,-460.0,0.0002,2]
[370461201,1752029449399,-460.0,0.0002,2]
[370461202,1752029449410,-1467.71,0.0002,2]
[370461203,1752029449423,-151.0,0.0002,2]
[370461204,1752029449433,-460.0,0.0002,2]
[370461205,1752029449443,-460.0,0.0002,2]
[370461206,1752029449453,-513.41487301,0.0002,2]
[370461207,1752029449464,-467.89264417,0.0002,2]
[370461208,1752029449475,-1539.37,0.0002,2]
[370461209,1752029449486,-463.87445045,0.0002,2]
[370461210,1752029449496,-152.810957,0.0002,2]
[370461211,1752029449507,-631.319459,0.0002,2]
[370461212,1752029449516,-471.48209091,0.0002,2]
[370461213,1752029449526,-631.319459,0.0002,2]
[370461214,1752029449536,-890.53,0.0002,2]
[370461215,1752029449546,-469.57868457,0.0002,2]
[370461216,1752029449556,-2130.94,0.0002,2]
[370461217,1752029449565,-460.0,0.0002,2]
[370461218,1752029449575,-460.0,0.0002,2]
[370461219,1752029449585,-529.48,0.0002,2]
[370461220,1752029449595,-460.0,0.0002,2]
[370461221,1752029449605,-469.18697463,0.0002,2]
[370461222,1752029449615,-2829.380721,0.0002,2]
[370461223,1752029449624,-460.0,0.0002,2]
[370461224,1752029449634,-460.0,0.0002,2]
[370461225,1752029449645,-327.636252,0.0002,2]
[370461226,1752029449655,-2829.380721,0.0002,2]
[370461227,1752029449665,-1268.98,0.0002,2]
[370461228,1752029449676,-327.636252,0.0002,2]
[370461229,1752029449686,-460.0,0.0002,2]
[370461230,1752029449697,-446.91164476,0.0002,2]
[370461231,1752029449707,-619.65,0.0002,2]
[370461232,1752029449718,-460.0,0.0002,2]
[370461233,1752029449730,-460.0,0.0002,2]
[370461234,1752029449740,-460.0,0.0002,2]
[370461235,1752029449751,-2512.11,0.0002,2]
[370461236,1752029449761,-460.0,0.0002,2]
[370461237,1752029449771,-682.29,0.0002,2]
[370461238,1752029449781,-460.0,0.0002,2]
[370461239,1752029449792,-1065.93,0.0002,2]
[370461240,1752029449802,-844.89,0.0002,2]
[370461241,1752029449813,-460.0,0.0002,2]
[370461242,1752029449823,-495.22,0.0002,2]
[370461243,1752029449834,-460.0,0.0002,2]
[370461244,1752029449844,-468.77464405,0.0002,2]
[370461245,1752029449856,-460.0,0.0002,2]
[370461246,1752029449866,-814.16,0.0002,2]
[370461247,1752029449875,-151.0,0.0002,2]
[370461248,1752029449885,-460.0,0.0002,2]
[370461249,1752029449896,-460.0,0.0002,2]
[370461250,1752029449905,-151.0,0.0002,2]
[370461251,1752029449916,-460.0,0.0002,2]
[370461252,1752029449925,-460.0,0.0002,2]
[370461253,1752029449935,-151.0,0.0002,2]
[370461254,1752029449945,-460.0,0.0002,2]
[370461255,1752029449954,-460.0,0.0002,2]
[370461256,1752029449964,-460.0,0.0002,2]
[370461257,1752029449973,-772.56,0.0002,2]
[370461258,1752029449982,-151.0,0.0002,2]
[370461259,1752029449993,-495.07,0.0002,2]
[370461260,1752029450003,-460.0,0.0002,2]
[370461261,1752029450012,-460.0,0.0002,2]
[370461262,1752029450022,-460.0,0.0002,2]
[370461263,1752029450031,-804.53,0.0002,2]
[370461264,1752029450041,-508.66,0.0002,2]
[370461265,1752029450051,-460.0,0.0002,2]
[370461266,1752029450061,-460.0,0.0002,2]
[370461267,1752029450071,-1018.28,0.0002,2]
[370461268,1752029450081,-460.0,0.0002,2]
[370461269,1752029450090,-460.0,0.0002,2]
[370461270,1752029450100,-460.0,0.0002,2]
[370461271,1752029450110,-542.76689706,0.0002,2]
[370461272,1752029450122,-882.65,0.0002,2]
[370461273,1752029450132,-429.891733,0.00020003,2]
[370461274,1752029450142,-12589.12013084,0.00020067,2]
[370461275,1752029450153,-837.99933892,0.00020067,2]
[370461276,1752029450163,-160.0,0.00020067,2]
[370461277,1752029450174,-230.53906051,0.00020067,2]
[370461278,1752029450185,-848.55005627,0.00020067,2]
[370461279,1752029450319,-215.27775528,0.00020067,2]
[370461280,1752029450330,-160.0,0.00020067,2]
[370461281,1752029450340,-160.0,0.00020067,2]
[370461282,1752029450350,-214.14293035,0.00020067,2]
[370461283,1752029450360,-160.0,0.00020067,2]
[370461284,1752029450370,-429.891733,0.00020099,2]
[370461285,1752029450379,-151.0,0.000201,3]
[370461286,1752029450389,-4327.15712278,0.00020107,2]
[370461287,1752029450400,-470.132006,0.00020187,2]
[370461288,1752029450409,-429.891733,0.00020194,2]
[370461289,1752029450419,-151.717804,0.00020268,2]
[370461290,1752029450428,-1500.0,0.00020268,2]
[370461291,1752029450439,-504.72484411,0.00020268,2]
[370461292,1752029450451,-501.49912669,0.00020268,2]
[370461293,1752029450460,-460.0,0.00020273,2]
[370461294,1752029450471,-460.0,0.00020273,2]
[370461295,1752029450482,-460.0,0.00020273,2]
[370461296,1752029450492,-460.0,0.00020273,2]
[370461297,1752029450502,-460.0,0.00020273,2]
[370461298,1752029450512,-151.0,0.00020273,2]
[370461299,1752029450522,-460.0,0.00020273,2]
[370461300,1752029450532,-460.0,0.00020273,2]
[370461301,1752029450542,-460.0,0.00020273,2]
[370461302,1752029450553,-460.0,0.00020273,2]
[370461303,1752029450563,-460.0,0.00020273,2]
[370461304,1752029450574,-151.0,0.00020273,2]
[370461305,1752029450584,-155.884464,0.00020273,2]
[370461306,1752029450593,-554.79466765,0.00020273,2]
[370461307,1752029450603,-573.72,0.00020273,2]
[370461308,1752029450613,-151.0,0.00020273,2]
[370461309,1752029450623,-467.75963039,0.00020273,2]
[370461310,1752029450633,-460.0,0.00020273,2]
[370461311,1752029450643,-483.39,0.00020273,2]
[370461312,1752029450652,-408.40729688,0.00020273,2]
[370461313,1752029450662,-471.40516269,0.00020273,2]
[370461314,1752029450672,-460.0,0.00020273,2]
[370461315,1752029450682,-460.0,0.00020273,2]
[370461316,1752029450694,-460.0,0.00020273,2]
[370461317,1752029450704,-417.35877617,0.00020273,2]
[370461318,1752029450714,-151.0,0.00020273,2]
[370461319,1752029450724,-460.0,0.00020273,2]
[370461320,1752029450733,-198.245192,0.00020273,2]
[370461321,1752029450742,-198.245192,0.00020273,2]
[370461322,1752029450751,-460.0,0.00020273,2]
[370461323,1752029450761,-151.0,0.00020273,2]
[370461324,1752029450770,-152.576344,0.00020273,2]
[370461325,1752029450779,-460.0,0.00020273,2]
[370461326,1752029450789,-469.57996515,0.00020273,2]
[370461327,1752029450799,-460.0,0.00020273,2]
[370461328,1752029450809,-151.0,0.00020273,2]
[370461329,1752029450819,-151.0,0.00020273,2]
[370461330,1752029450828,-151.0,0.00020273,2]
[370461331,1752029450837,-460.0,0.00020273,2]
[370461332,1752029450848,-200.208506,0.00020273,2]
[370461333,1752029450858,-479.03,0.00020273,2]
[370461334,1752029450870,-200.208506,0.00020273,2]
[370461335,1752029450880,-460.0,0.00020273,2]
[370461336,1752029450889,-460.0,0.00020273,2]
[370461337,1752029450900,-812.99,0.00020273,2]
[370461338,1752029450910,-3032.81,0.00020273,2]
[370461339,1752029450920,-460.0,0.00020273,2]
[370461340,1752029450930,-151.0,0.00020273,2]
[370461341,1752029450939,-257.595622,0.00020273,2]
[370461342,1752029450950,-151.0,0.00020273,2]
[370461343,1752029450961,-257.595622,0.00020273,2]
[370461344,1752029450971,-460.0,0.00020273,2]
[370461345,1752029450980,-2302.41,0.00020273,2]
[370461346,1752029450990,-460.0,0.00020273,2]
[370461347,1752029450999,-1488.7,0.00020273,2]
[370461348,1752029451009,-151.0,0.00020273,2]
[370461349,1752029451019,-460.0,0.00020273,2]
[370461350,1752029451028,-152.764534,0.00020273,2]
[370461351,1752029451038,-460.0,0.00020273,2]
[370461352,1752029451047,-460.0,0.00020273,2]
[370461353,1752029451057,-763.27,0.00020273,2]
[370461354,1752029451067,-460.0,0.00020273,2]
[370461355,1752029451076,-526.62,0.00020273,2]
[370461356,1752029451087,-530.61135614,0.00020273,2]
[370461357,1752029451096,-460.0,0.00020273,2]
[370461358,1752029451107,-460.0,0.00020273,2]
[370461359,1752029451116,-686.65,0.00020273,2]
[370461360,1752029451126,-460.0,0.00020273,2]
[370461361,1752029451136,-460.0,0.00020273,2]
[370461362,1752029451146,-460.0,0.00020273,2]
[370461363,1752029451156,-460.0,0.00020273,2]
[370461364,1752029451166,-460.0,0.00020273,2]
[370461365,1752029451178,-460.0,0.00020273,2]
[370461366,1752029451188,-460.0,0.00020273,2]
[370461367,1752029451198,-474.5353023,0.00020273,2]
[370461368,1752029451210,-1467.71,0.00020273,2]
[370461369,1752029451220,-152.382062,0.00020273,2]
[370461370,1752029451231,-478.43271616,0.00020273,2]
[370461371,1752029451241,-460.0,0.00020273,2]
[370461372,1752029451250,-1539.37,0.00020273,2]
[370461373,1752029451260,-631.319459,0.00020273,2]
[370461374,1752029451270,-631.319459,0.00020273,2]
[370461375,1752029451280,-890.53,0.00020273,2]
[370461376,1752029451290,-2130.94,0.00020273,2]
[370461377,1752029451299,-460.0,0.00020273,2]
[370461378,1752029451309,-460.0,0.00020273,2]
[370461379,1752029451319,-529.48,0.00020273,2]
[370461380,1752029451328,-469.31905196,0.00020273,2]
[370461381,1752029451337,-2829.380721,0.00020273,2]
[370461382,1752029451346,-327.636252,0.00020273,2]
[370461383,1752029451356,-460.0,0.00020273,2]
[370461384,1752029451365,-2829.380721,0.00020273,2]
[370461385,1752029451375,-1268.98,0.00020273,2]
[370461386,1752029451385,-327.636252,0.00020273,2]
[370461387,1752029451396,-460.0,0.00020273,2]
[370461388,1752029451406,-619.65,0.00020273,2]
[370461389,1752029451416,-460.0,0.00020273,2]
[370461390,1752029451426,-460.0,0.00020273,2]
[370461391,1752029451436,-264.43,0.00020273,2]
[370461392,1752029451445,-460.0,0.00020273,2]
[370461393,1752029451456,-2512.11,0.00020273,2]
[370461394,1752029451465,-682.29,0.00020273,2]
[370461395,1752029451475,-599.70417561,0.00020273,2]
[370461396,1752029451485,-1065.93,0.00020273,2]
[370461397,1752029451495,-844.89,0.00020273,2]
[370461398,1752029451505,-460.0,0.00020273,2]
[370461399,1752029451515,-495.22,0.00020273,2]
[370461400,1752029451524,-460.0,0.00020273,2]
[370461401,1752029451534,-460.0,0.00020273,2]
[370461402,1752029451543,-814.16,0.00020273,2]
[370461403,1752029451553,-151.0,0.00020273,2]
[370461404,1752029451565,-460.0,0.00020273,2]
[370461405,1752029451574,-460.0,0.00020273,2]
[370461406,1752029451584,-460.0,0.00020273,2]
[370461407,1752029451594,-460.0,0.00020273,2]
[370461408,1752029451603,-151.0,0.00020273,2]
[370461409,1752029451613,-460.0,0.00020273,2]
[370461410,1752029451623,-460.0,0.00020273,2]
[370461411,1752029451632,-460.0,0.00020273,2]
[370461412,1752029451642,-772.56,0.00020273,2]
[370461413,1752029451651,-151.0,0.00020273,2]
[370461414,1752029451661,-495.07,0.00020273,2]
[370461415,1752029451671,-460.0,0.00020273,2]
[370461416,1752029451680,-324.06205132,0.00020273,2]
[370461417,1752029451690,-460.0,0.00020273,2]
[370461418,1752029451699,-804.53,0.00020273,2]
[370461419,1752029451710,-508.66,0.00020273,2]
[370461420,1752029451720,-460.0,0.00020273,2]
[370461421,1752029451729,-460.0,0.00020273,2]
[370461422,1752029451739,-1018.28,0.00020273,2]
[370461423,1752029451748,-460.0,0.00020273,2]
[370461424,1752029451758,-470.74232701,0.00020273,2]
[370461425,1752029451767,-470.6693537,0.00020273,2]
[370461426,1752029451776,-429.891733,0.0002029,2]
[370461427,1752029451787,-1269.27517721,0.0002031,2]
[370461428,1752029451797,-4327.15712278,0.00020314,3]
[370461429,1752029451807,-429.891733,0.00020386,2]
[370461430,1752029451816,-151.0,0.000204,4]
[370461431,1752029451826,-306.1422599,0.00020411,2]
[370461432,1752029451836,-307.6600406,0.00020411,2]
[370461433,1752029451845,-159.5204994,0.00020411,2]
[370461434,1752029451855,-177.7959578,0.00020411,2]
[370461435,1752029451864,-306.0,0.00020411,2]
[370461436,1752029451874,-587.7233729,0.00020411,2]
[370461437,1752029451884,-159.5204994,0.00020411,2]
[370461438,1752029451894,-177.7959578,0.00020411,2]
[370461439,1752029451904,-159.5204994,0.00020411,2]
[370461440,1752029451913,-177.7959578,0.00020411,2]
[370461441,1752029451924,-429.891733,0.00020482,2]
[370461442,1752029451934,-151.0,0.000205,4]
[370461443,1752029451944,-1005.96527619,0.00020521,2]
[370461444,1752029451954,-848.55005627,0.00020521,3]
[370461445,1752029451963,-214.14293035,0.00020521,3]
[370461446,1752029451973,-160.0,0.00020521,3]
[370461447,1752029451983,-12589.12013084,0.00020521,3]
[370461448,1752029451993,-4327.15712278,0.00020521,3]
[370461449,1752029452002,-151.0,0.00020521,2]
[370461450,1752029452012,-1719.76,0.00020538,3]
[370461451,1752029452022,-859.88,0.00020538,3]
[370461452,1752029452032,-429.94,0.00020538,3]
[370461453,1752029452041,-207.4,0.00020542,2]
[370461454,1752029452051,-690.642,0.00020542,2]
[370461455,1752029452060,-300.0,0.00020542,2]
[370461456,1752029452070,-300.0,0.00020542,2]
[370461457,1752029452081,-374.97288028,0.00020542,2]
[370461458,1752029452091,-300.0,0.00020542,2]
[370461459,1752029452101,-300.0,0.00020542,2]
[370461460,1752029452110,-300.0,0.00020542,2]
[370461461,1752029452120,-300.0,0.00020542,2]
[370461462,1752029452132,-330.12308961,0.00020542,2]
[370461463,1752029452141,-25000.0,0.00020542,2]
[370461464,1752029452151,-22827.66514179,0.00020542,2]
[370461465,1752029452160,-152.164462,0.00020542,2]
[370461466,1752029452170,-177.45649,0.00020542,2]
[370461467,1752029452184,-263.095971,0.00020542,2]
[370461468,1752029452194,-151.0,0.00020542,2]
[370461469,1752029452204,-151.0,0.00020542,2]
[370461470,1752029452214,-2829.380721,0.00020542,2]
[370461471,1752029452224,-327.636252,0.00020542,2]
[370461472,1752029452275,-2829.380721,0.00020542,2]
[370461473,1752029452285,-327.636252,0.00020542,2]
[370461474,1752029452294,-151.0,0.00020542,2]
[370461475,1752029452303,-151.0,0.00020542,2]
[370461476,1752029452314,-152.294341,0.00020542,2]
[370461477,1752029452324,-460.0,0.00020547,2]
[370461478,1752029452333,-460.0,0.00020547,2]
[370461479,1752029452344,-475.08973069,0.00020547,2]
[370461480,1752029452354,-377.58487684,0.00020547,2]
[370461481,1752029452363,-460.0,0.00020547,2]
[370461482,1752029452373,-250.82291399,0.00020547,2]
[370461483,1752029452383,-460.0,0.00020547,2]
[370461484,1752029452394,-460.0,0.00020547,2]
[370461485,1752029452404,-460.0,0.00020547,2]
[370461486,1752029452415,-573.72,0.00020547,2]
[370461487,1752029452427,-151.0,0.00020547,2]
[370461488,1752029452438,-244.05898662,0.00020547,2]
[370461489,1752029452448,-483.39,0.00020547,2]
[370461490,1752029452460,-232.04314632,0.00020547,2]
[370461491,1752029452470,-460.0,0.00020547,2]
[370461492,1752029452480,-460.0,0.00020547,2]
[370461493,1752029452491,-460.0,0.00020547,2]
[370461494,1752029452500,-198.245192,0.00020547,2]
[370461495,1752029452510,-198.245192,0.00020547,2]
[370461496,1752029452522,-460.0,0.00020547,2]
[370461497,1752029452537,-460.0,0.00020547,2]
[370461498,1752029452548,-460.0,0.00020547,2]
[370461499,1752029452557,-334.527495,0.00020547,2]
[370461500,1752029452568,-334.527495,0.00020547,2]
[370461501,1752029452577,-151.0,0.00020547,2]
[370461502,1752029452587,-151.0,0.00020547,2]
[370461503,1752029452597,-151.0,0.00020547,2]
[370461504,1752029452607,-470.69813594,0.00020547,2]
[370461505,1752029452617,-200.208506,0.00020547,2]
[370461506,1752029452627,-479.03,0.00020547,2]
[370461507,1752029452637,-200.208506,0.00020547,2]
[370461508,1752029452649,-460.0,0.00020547,2]
[370461509,1752029452659,-460.0,0.00020547,2]
[370461510,1752029452668,-812.99,0.00020547,2]
[370461511,1752029452677,-3032.81,0.00020547,2]
[370461512,1752029452687,-460.0,0.00020547,2]
[370461513,1752029452696,-257.595622,0.00020547,2]
[370461514,1752029452705,-257.595622,0.00020547,2]
[370461515,1752029452715,-460.0,0.00020547,2]
[370461516,1752029452725,-2302.41,0.00020547,2]
[370461517,1752029452736,-460.0,0.00020547,2]
[370461518,1752029452745,-1488.7,0.00020547,2]
[370461519,1752029452754,-460.0,0.00020547,2]
[370461520,1752029452764,-470.1302288,0.00020547,2]
[370461521,1752029452774,-460.0,0.00020547,2]
[370461522,1752029452785,-763.27,0.00020547,2]
[370461523,1752029452795,-460.0,0.00020547,2]
[370461524,1752029452806,-526.62,0.00020547,2]
[370461525,1752029452815,-460.0,0.00020547,2]
[370461526,1752029452825,-460.0,0.00020547,2]
[370461527,1752029452835,-686.65,0.00020547,2]
[370461528,1752029452845,-484.63188212,0.00020547,2]
[370461529,1752029452855,-460.0,0.00020547,2]
[370461530,1752029452864,-460.0,0.00020547,2]
[370461531,1752029452874,-460.0,0.00020547,2]
[370461532,1752029452883,-460.0,0.00020547,2]
[370461533,1752029452893,-473.43034304,0.00020547,2]
[370461534,1752029452903,-460.0,0.00020547,2]
[370461535,1752029452912,-1467.71,0.00020547,2]
[370461536,1752029452922,-460.0,0.00020547,2]
[370461537,1752029452931,-1539.37,0.00020547,2]
[370461538,1752029452941,-631.319459,0.00020547,2]
[370461539,1752029452950,-631.319459,0.00020547,2]
[370461540,1752029452959,-890.53,0.00020547,2]
[370461541,1752029452969,-2130.94,0.00020547,2]
[370461542,1752029452978,-460.0,0.00020547,2]
[370461543,1752029452989,-460.0,0.00020547,2]
[370461544,1752029452998,-529.48,0.00020547,2]
[370461545,1752029453007,-460.0,0.00020547,2]
[370461546,1752029453017,-1268.98,0.00020547,2]
[370461547,1752029453026,-460.0,0.00020547,2]
[370461548,1752029453036,-619.65,0.00020547,2]
[370461549,1752029453045,-470.21360895,0.00020547,2]
[370461550,1752029453055,-460.0,0.00020547,2]
[370461551,1752029453064,-483.04706673,0.00020547,2]
[370461552,1752029453074,-2512.11,0.00020547,2]
[370461553,1752029453084,-682.29,0.00020547,2]
[370461554,1752029453093,-1065.93,0.00020547,2]
[370461555,1752029453103,-844.89,0.00020547,2]
[370461556,1752029453113,-520.02136783,0.00020547,2]
[370461557,1752029453123,-495.22,0.00020547,2]
[370461558,1752029453132,-460.0,0.00020547,2]
[370461559,1752029453142,-814.16,0.00020547,2]
[370461560,1752029453151,-460.0,0.00020547,2]
[370461561,1752029453161,-460.0,0.00020547,2]
[370461562,1752029453171,-510.34579795,0.00020547,2]
[370461563,1752029453184,-460.0,0.00020547,2]
[370461564,1752029453195,-460.0,0.00020547,2]
[370461565,1752029453204,-460.0,0.00020547,2]
[370461566,1752029453214,-772.56,0.00020547,2]
[370461567,1752029453226,-495.07,0.00020547,2]
[370461568,1752029453236,-460.0,0.00020547,2]
[370461569,1752029453247,-473.07851239,0.00020547,2]
[370461570,1752029453261,-804.53,0.00020547,2]
[370461571,1752029453274,-508.66,0.00020547,2]
[370461572,1752029453285,-250.5099498,0.00020547,2]
[370461573,1752029453295,-460.0,0.00020547,2]
[370461574,1752029453306,-1018.28,0.00020547,2]
[370461575,1752029453315,-460.0,0.00020547,2]
[370461576,1752029453328,-846.0885864,0.00020548,2]
[370461577,1752029453338,-500.61249819,0.00020573,2]
[370461578,1752029453351,-500.0,0.00020573,2]
[370461579,1752029453362,-501.65226115,0.00020573,2]
[370461580,1752029453372,-160.28744994,0.00020573,2]
[370461581,1752029453383,-500.0,0.00020573,2]
[370461582,1752029453394,-501.54968527,0.00020573,2]
[370461583,1752029453404,-500.0,0.00020573,2]
[370461584,1752029453417,-500.0,0.00020573,2]
[370461585,1752029453427,-503.45671332,0.00020573,2]
[370461586,1752029453438,-500.61000431,0.00020573,2]
[370461587,1752029453448,-264.47695245,0.00020573,2]
[370461588,1752029453457,-501.19705666,0.00020573,2]
[370461589,1752029453468,-500.0,0.00020573,2]
[370461590,1752029453478,-500.45324457,0.00020573,2]
[370461591,1752029453488,-500.89607632,0.00020573,2]
[370461592,1752029453498,-501.09006373,0.00020573,2]
[370461593,1752029453510,-500.45840189,0.00020573,2]
[370461594,1752029453521,-500.0,0.00020573,2]
[370461595,1752029453532,-643.10358692,0.00020573,2]
[370461596,1752029453543,-500.0,0.00020573,2]
[370461597,1752029453556,-500.0,0.00020573,2]
[370461598,1752029453567,-500.77678186,0.00020573,2]
[370461599,1752029453578,-500.0,0.00020573,2]
[370461600,1752029453588,-429.891733,0.00020577,2]
[370461601,1752029453600,-716.195754,0.00020597,2]
[370461602,1752029453610,-5295.78,0.000206,2]
[370461603,1752029453620,-151.0,0.000206,4]
[370461604,1752029453630,-742.6949969,0.00020652,2]
[370461605,1752029453640,-429.891733,0.00020673,2]
[370461606,1752029453651,-420.0,0.00020686,2]
[370461607,1752029453661,-151.0,0.000207,4]
[370461608,1752029453670,-770.17471178,0.00020707,2]
[370461609,1752029453680,-194.20670606,0.00020707,2]
[370461610,1752029453691,-201.44562593,0.00020707,2]
[370461611,1752029453700,-154.0,0.00020707,2]
[370461612,1752029453710,-154.0,0.00020707,2]
[370461613,1752029453720,-154.0,0.00020707,2]
[370461614,1752029453730,-210.73240784,0.00020707,2]
[370461615,1752029453740,-318.0,0.00020707,2]
[370461616,1752029453750,-318.0,0.00020707,2]
[370461617,1752029453759,-318.0,0.00020707,2]
[370461618,1752029453769,-283.48231727,0.00020707,2]
[370461619,1752029453779,-209.31711733,0.00020721,2]
[370461620,1752029453788,-1269.27517721,0.00020721,2]
[370461621,1752029453797,-4327.15712278,0.00020728,3]
[370461622,1752029453807,-963.525,0.00020758,2]
[370461623,1752029453817,-784.58877483,0.00020762,2]
[370461624,1752029453827,-798.67117612,0.00020762,2]
[370461625,1752029453837,-429.891733,0.00020769,2]
[370461626,1752029453846,-151.0,0.000208,3]
[370461627,1752029453856,-151.0,0.00020808,2]
[370461628,1752029453866,-151.0,0.00020808,2]
[370461629,1752029453876,-2000.0,0.00020816,2]
[370461630,1752029453886,-960.99548709,0.00020817,2]
[370461631,1752029453896,-460.0,0.00020821,2]
[370461632,1752029453906,-460.0,0.00020821,2]
[370461633,1752029453916,-460.0,0.00020821,2]
[370461634,1752029453926,-460.0,0.00020821,2]
[370461635,1752029453936,-460.0,0.00020821,2]
[370461636,1752029453947,-460.0,0.00020821,2]
[370461637,1752029453956,-151.509799,0.00020821,2]
[370461638,1752029453966,-573.72,0.00020821,2]
[370461639,1752029453976,-483.39,0.00020821,2]
[370461640,1752029453987,-460.0,0.00020821,2]
[370461641,1752029453997,-460.0,0.00020821,2]
[370461642,1752029454007,-460.0,0.00020821,2]
[370461643,1752029454017,-460.0,0.00020821,2]
[370461644,1752029454027,-471.29577535,0.00020821,2]
[370461645,1752029454037,-357.03367746,0.00020821,2]
[370461646,1752029454047,-334.527495,0.00020821,2]
[370461647,1752029454057,-334.527495,0.00020821,2]
[370461648,1752029454067,-479.03,0.00020821,2]
[370461649,1752029454077,-460.0,0.00020821,2]
[370461650,1752029454087,-460.0,0.00020821,2]
[370461651,1752029454097,-812.99,0.00020821,2]
[370461652,1752029454107,-3032.81,0.00020821,2]
[370461653,1752029454117,-585.81670603,0.00020821,2]
[370461654,1752029454127,-151.0,0.00020821,2]
[370461655,1752029454137,-460.0,0.00020821,2]
[370461656,1752029454148,-2302.41,0.00020821,2]
[370461657,1752029454158,-1488.7,0.00020821,2]
[370461658,1752029454168,-460.0,0.00020821,2]
[370461659,1752029454180,-460.0,0.00020821,2]
[370461660,1752029454190,-180.758313,0.00020821,2]
[370461661,1752029454199,-460.0,0.00020821,2]
[370461662,1752029454209,-763.27,0.00020821,2]
[370461663,1752029454219,-460.0,0.00020821,2]
[370461664,1752029454229,-526.62,0.00020821,2]
[370461665,1752029454239,-460.0,0.00020821,2]
[370461666,1752029454248,-460.0,0.00020821,2]
[370461667,1752029454258,-686.65,0.00020821,2]
[370461668,1752029454267,-460.0,0.00020821,2]
[370461669,1752029454277,-460.0,0.00020821,2]
[370461670,1752029454287,-460.0,0.00020821,2]
[370461671,1752029454297,-460.0,0.00020821,2]
[370461672,1752029454307,-460.0,0.00020821,2]
[370461673,1752029454316,-1467.71,0.00020821,2]
[370461674,1752029454326,-460.0,0.00020821,2]
[370461675,1752029454336,-1539.37,0.00020821,2]
[370461676,1752029454346,-890.53,0.00020821,2]